bitfinex/quotes_BTCUSD_20251231
["timestamp","ask_amount","ask_price","bid_price","bid_amount"]
[1767156706231,0.01130812,88432.0,88423.0,0.145414]
[1767156706725,0.06784832,88433.0,88423.0,0.145414]
[1767156707238,0.01130825,88431.0,88423.0,0.145414]
[1767156707387,0.01130812,88432.0,88423.0,0.145414]
[1767156712194,0.01130825,88431.0,88423.0,0.145414]
[1767156712375,0.01130812,88432.0,88423.0,0.145414]
[1767156712673,0.06784952,88431.0,88423.0,0.145414]
[1767156713006,0.01130837,88430.0,88416.0,0.000112]
[1767156713212,0.01130863,88428.0,88417.0,0.1403]
[1767156714056,0.06785103,88429.0,88417.0,0.1403]
[1767156715171,0.0113085,88429.0,88417.0,0.1403]
[1767156715773,0.01130863,88428.0,88417.0,0.1403]
[1767156716140,0.0113085,88429.0,88417.0,0.1403]
[1767156717603,0.01130863,88428.0,88417.0,0.1403]
[1767156718306,0.0113085,88429.0,88417.0,0.1403]
[1767156719111,0.01130863,88428.0,88417.0,0.1403]
[1767156720446,0.0226285,88429.0,88417.0,0.1403]
[1767156720651,0.01132,88429.0,88417.0,0.1403]
[1767156721579,0.0226285,88429.0,88417.0,0.1403]
[1767156722191,0.01132,88429.0,88417.0,0.1403]
[1767156722673,0.0226285,88429.0,88417.0,0.1403]
[1767156722876,0.01130863,88428.0,88417.0,0.1403]
[1767156723911,0.0226285,88429.0,88417.0,0.1403]
[1767156724315,0.01132,88429.0,88417.0,0.1403]
[1767156725142,0.0226285,88429.0,88417.0,0.1403]
[1767156726193,0.01132,88429.0,88417.0,0.1403]
[1767156726489,0.0226285,88429.0,88417.0,0.1403]
[1767156726691,0.01132,88429.0,88417.0,0.1403]
[1767156727071,0.0226285,88429.0,88417.0,0.1403]
[1767156727795,0.01132,88429.0,88417.0,0.1403]
[1767156727954,0.0226285,88429.0,88417.0,0.1403]
[1767156728779,0.01132,88429.0,88417.0,0.1403]
[1767156729111,0.0226285,88429.0,88417.0,0.1403]
[1767156729314,0.01132,88429.0,88417.0,0.1403]
[1767156729611,0.0226285,88429.0,88417.0,0.1403]
[1767156729903,0.01132,88429.0,88417.0,0.1403]
[1767156730103,0.0226285,88429.0,88417.0,0.1403]
[1767156730361,0.01132,88429.0,88417.0,0.1403]
[1767156731457,0.0226285,88429.0,88417.0,0.1403]
[1767156732429,0.01130863,88428.0,88417.0,0.1403]
[1767156732635,0.41517961,88427.0,88417.0,0.1403]
[1767156738580,0.0226285,88429.0,88417.0,0.1403]
[1767156738851,0.41517961,88427.0,88417.0,0.1403]
[1767156742641,0.01132,88429.0,88417.0,0.1403]
[1767156742841,0.41517961,88427.0,88417.0,0.1403]
[1767156746326,0.42648837,88427.0,88417.0,0.1403]
[1767156746542,0.41517961,88427.0,88417.0,0.1403]
[1767156753044,0.01132,88429.0,88427.0,0.000549]
[1767156753591,0.01132,88429.0,88421.0,0.14904]
[1767156753806,0.000113,88440.0,88431.0,0.14904]
[1767156754016,0.16061947,88457.0,88442.0,0.14904]
[1767156754017,0.01132,88450.0,88442.0,0.14904]
[1767156754220,0.01132,88450.0,88442.0,0.16034684]
[1767156754419,0.01132,88450.0,88443.0,0.01130671]
[1767156754630,0.01132,88451.0,88444.0,0.14904]
[1767156754929,0.01132,88451.0,88450.0,0.000549]
[1767156755096,0.01081823,88451.0,88444.0,0.14904]
[1767156756295,0.01136823,88451.0,88444.0,0.14904]
[1767156756919,4.823e-05,88451.0,88444.0,0.14904]
[1767156757142,4.823e-05,88451.0,88445.0,0.01130646]
[1767156757343,4.823e-05,88451.0,88446.0,0.16034633]
[1767156757638,4.823e-05,88451.0,88446.0,0.14904]
[1767156758487,0.01132,88455.0,88446.0,0.16034633]
[1767156759539,0.01132,88455.0,88446.0,0.14904]
[1767156763955,0.01132,88455.0,88442.0,0.01130684]
[1767156764155,0.41517961,88452.0,88442.0,0.16039507]
[1767156764572,0.41517961,88452.0,88443.0,0.01130671]
[1767156764776,0.41517961,88452.0,88443.0,0.14904]
[1767156765831,0.41517961,88453.0,88443.0,0.14904]
[1767156766038,0.01132,88455.0,88443.0,0.14904]
[1767156766192,0.41517961,88453.0,88443.0,0.14904]
[1767156772458,0.01132,88455.0,88443.0,0.14904]
[1767156772796,0.0001125,88460.0,88450.0,0.14662]
[1767156772797,0.41529211,88460.0,88450.0,0.14662]
[1767156773000,0.01132,88455.0,88450.0,0.14662]
[1767156773426,0.01132,88455.0,88445.0,0.14662]
[1767156773773,0.42649961,88455.0,88442.0,4.823e-05]
[1767156773956,0.41517961,88453.0,88442.0,4.823e-05]
[1767156774160,0.41517961,88453.0,88442.0,0.14666823]
[1767156774558,0.41517961,88453.0,88443.0,0.14662]
[1767156776826,0.01132,88455.0,88444.0,0.14662]
[1767156777017,0.41517961,88453.0,88444.0,0.14662]
[1767156777323,0.41517961,88453.0,88444.0,0.15792658]
[1767156777673,0.41517961,88453.0,88444.0,0.14662]
[1767156778539,0.41517961,88453.0,88444.0,0.15792658]
[1767156778901,0.41517961,88453.0,88444.0,0.14662]
[1767156779339,0.01132,88455.0,88444.0,0.14662]
[1767156780819,0.01132,88455.0,88444.0,0.15792658]
[1767156781122,0.01132,88455.0,88445.0,0.01130646]
[1767156781435,0.0567,88459.0,88445.0,0.14844646]
[1767156781635,0.41529211,88460.0,88450.0,0.13714]
[1767156781636,0.0001125,88460.0,88450.0,0.13714]
[1767156781823,0.0001125,88460.0,88450.0,0.14844582]
[1767156782002,0.0001125,88460.0,88450.0,0.13714]
[1767156782926,0.41529211,88460.0,88450.0,0.13714]
[1767156783359,0.41529211,88460.0,88450.0,0.14844582]
[1767156783560,0.41529211,88460.0,88450.0,0.13714]
[1767156784372,0.41529211,88460.0,88450.0,0.14844582]
[1767156784750,0.41529211,88460.0,88450.0,0.13714]
[1767156784974,0.41529211,88460.0,88451.0,0.13714]
[1767156785775,0.0001125,88460.0,88451.0,0.13714]
[1767156788706,0.0074685,88462.0,88452.0,0.13714]
[1767156788847,0.41517961,88461.0,88452.0,0.13714]
[1767156789499,0.01132,88462.0,88455.0,0.13714]
[1767156789730,0.01132,88462.0,88456.0,0.13714]
[1767156793303,0.01132,88462.0,88456.0,0.14844505]
[1767156793506,0.01132,88462.0,88456.0,0.13714]
[1767156797297,0.0001125,88467.0,88460.0,0.01130454]
[1767156797461,0.0001125,88467.0,88464.0,0.15891403]
[1767156797792,0.0001125,88467.0,88466.0,0.14761]
[1767156798605,2.5e-06,88467.0,88465.0,0.14761]
[1767156799939,2.5e-06,88467.0,88465.0,0.147061]
[1767156800655,2.5e-06,88467.0,88458.0,0.1589148]
[1767156800945,2.5e-06,88467.0,88459.0,0.21543755]
[1767156801151,2.5e-06,88467.0,88460.0,0.14761]
[1767156801357,2.5e-06,88467.0,88462.0,0.01130428]
[1767156801529,2.5e-06,88467.0,88463.0,0.14761]
[1767156801736,2.5e-06,88467.0,88463.0,0.15891416]
[1767156802136,2.5e-06,88467.0,88463.0,0.14761]
[1767156803917,2.5e-06,88467.0,88463.0,0.15891416]
[1767156804348,2.5e-06,88467.0,88463.0,0.14761]
[1767156805234,2.5e-06,88467.0,88466.0,0.14761]
[1767156811722,2.5e-06,88467.0,88461.0,0.01132]
[1767156816571,2.5e-06,88467.0,88433.0,0.01130799]
[1767156816572,0.05802,88451.0,88433.0,0.01130799]
[1767156816767,0.05802,88451.0,88434.0,0.01132]
[1767156816768,0.06932569,88451.0,88434.0,0.01132]
[1767156816948,0.01130582,88450.0,88434.0,0.01132]
[1767156817147,0.06932569,88451.0,88434.0,0.01132]
[1767156817148,0.05802,88451.0,88434.0,0.01132]
[1767156817351,0.05802,88451.0,88443.0,0.0002225]
[1767156817996,0.01130633,88446.0,88443.0,0.00017867]
[1767156818193,0.06932633,88446.0,88443.0,0.00017867]
[1767156818352,0.05802,88446.0,88443.0,0.00017867]
[1767156818816,0.05802,88446.0,88443.0,0.00013724]
[1767156821546,0.01130595,88449.0,88443.0,0.00013724]
[1767156821868,0.06932607,88448.0,88443.0,0.00013724]
[1767156823147,0.05802,88448.0,88443.0,0.00013724]
[1767156823484,0.06932607,88448.0,88443.0,0.00013724]
[1767156824747,0.01130595,88449.0,88443.0,0.00013724]
[1767156825232,0.06932582,88450.0,88443.0,0.00013724]
[1767156825432,0.05802,88450.0,88443.0,0.00013724]
[1767156825886,0.01132,88452.0,88443.0,0.00013724]
[1767156828478,0.41497295,88453.0,88443.0,0.00013724]
[1767156828676,0.0002,88453.0,88452.0,0.000549]
[1767156828991,0.0002,88453.0,88443.0,0.01144395]
[1767156829188,0.01132,88452.0,88443.0,0.00013724]
[1767156830389,0.010771,88452.0,88443.0,0.01144395]
[1767156830593,0.010771,88452.0,88444.0,0.01130658]
[1767156832212,0.010771,88452.0,88445.0,0.01130646]
[1767156832408,0.010771,88452.0,88444.0,0.01130658]
[1767156832611,0.010771,88452.0,88443.0,0.01144395]
[1767156833018,0.010771,88452.0,88443.0,0.00013724]
[1767156841508,0.010771,88452.0,88443.0,0.01144395]
[1767156841710,0.010771,88452.0,88443.0,0.00013724]
[1767156847164,0.05802,88449.0,88443.0,2.4e-07]
[1767156847303,0.05802,88449.0,88442.0,6.41e-06]
[1767156847509,0.0693262,88447.0,88442.0,6.41e-06]
[1767156847726,0.05802,88447.0,88442.0,6.41e-06]
[1767156848417,0.068791,88452.0,88442.0,6.41e-06]
[1767156850977,0.068791,88452.0,88437.0,7.627e-05]
[1767156851183,0.08009656,88452.0,88437.0,7.627e-05]
[1767156851382,0.068791,88452.0,88437.0,7.627e-05]
[1767156851804,0.068791,88452.0,88437.0,3.368e-05]
[1767156852152,0.01130582,88450.0,88437.0,3.368e-05]
[1767156852391,0.01130607,88448.0,88437.0,3.368e-05]
[1767156852529,0.41477295,88447.0,88437.0,3.368e-05]
[1767156854173,0.41477295,88447.0,88433.0,0.01005863]
[1767156854380,0.41477295,88443.0,88433.0,0.15007863]
[1767156854578,0.41505005,88443.0,88433.0,0.15007863]
[1767156856259,0.01130582,88450.0,88433.0,0.14888294]
[1767156856783,0.01130595,88449.0,88433.0,0.14888294]
[1767156857348,0.06783686,88448.0,88433.0,0.14888294]
[1767156857555,0.0113062,88447.0,88433.0,0.14888294]
[1767156857751,0.01130633,88446.0,88433.0,0.14888294]
[1767156857956,0.0113062,88447.0,88433.0,0.14884014]
[1767156858333,0.01130607,88448.0,88433.0,0.14884014]
[1767156858568,0.0113062,88447.0,88433.0,0.14884014]
[1767156858768,0.8301001,88443.0,88431.0,0.00054447]
[1767156858967,0.01130722,88439.0,88431.0,0.00054447]
[1767156859192,0.42635702,88441.0,88431.0,0.00054447]
[1767156859406,0.41505005,88441.0,88431.0,0.00054447]
[1767156859608,0.41505005,88441.0,88431.0,0.00050312]
[1767156860227,0.42635702,88441.0,88431.0,0.00050312]
[1767156861044,0.41505005,88441.0,88431.0,0.00050312]
[1767156861746,0.42635702,88441.0,88431.0,0.00050312]
[1767156861927,0.0113071,88440.0,88431.0,0.00050312]
[1767156862110,0.42635702,88441.0,88431.0,0.00050312]
[1767156862471,0.41505005,88441.0,88431.0,0.00050312]
[1767156864148,0.41505005,88441.0,88431.0,0.00046028]
[1767156866621,0.41505005,88441.0,88431.0,0.00041794]
[1767156871167,0.42640518,88441.0,88431.0,0.00041794]
[1767156874182,0.42640518,88441.0,88431.0,0.00037626]
[1767156877031,0.01130722,88439.0,88431.0,0.00037626]
[1767156877275,0.06784529,88437.0,88431.0,0.00037626]
[1767156877419,0.06784529,88437.0,88423.0,0.0001125]
[1767156877420,0.48289534,88437.0,88423.0,0.0001125]
[1767156877616,0.41505005,88433.0,88423.0,0.0001125]
[1767156880182,0.41505005,88433.0,88423.0,7.04e-05]
[1767156881698,0.01132,88434.0,88423.0,7.04e-05]
[1767156881871,0.41505005,88433.0,88423.0,7.04e-05]
[1767156885215,0.41505005,88433.0,88423.0,0.1357604]
[1767156888926,0.41505005,88433.0,88423.0,0.14706967]
[1767156889079,0.41505005,88433.0,88423.0,0.1357604]
[1767156890144,0.41505005,88433.0,88423.0,0.14706967]
[1767156891903,0.41505005,88433.0,88423.0,0.1357604]
[1767156892025,0.01132,88434.0,88424.0,0.16102914]
[1767156892227,0.42637005,88434.0,88433.0,0.000549]
[1767156892427,0.01132,88434.0,88433.0,0.000549]
[1767156892627,0.01132,88434.0,88425.0,0.01130901]
[1767156892850,0.01132,88434.0,88425.0,0.16102901]
[1767156893687,0.01132,88434.0,88425.0,0.14972]
[1767156893984,0.010771,88434.0,88425.0,0.14972]
[1767156894342,0.010771,88434.0,88425.0,0.16102901]
[1767156896430,0.010771,88434.0,88425.0,0.14972]
[1767156896630,0.010771,88434.0,88423.0,0.1497904]
[1767156896807,0.41505005,88433.0,88423.0,0.16109967]
[1767156896989,0.41505005,88433.0,88423.0,0.1497904]
[1767156897910,0.41505005,88433.0,88423.0,0.16109967]
[1767156898296,0.41505005,88433.0,88423.0,0.1497904]
[1767156904616,0.010771,88434.0,88423.0,0.1497904]
[1767156904900,0.41505005,88433.0,88423.0,0.1497904]
[1767156916498,0.4151664,88433.0,88423.0,0.1497904]
[1767156917689,0.010771,88434.0,88423.0,0.1497904]
[1767156917884,0.4151664,88433.0,88423.0,0.1497904]
[1767156921707,0.4151664,88433.0,88418.0,0.01130991]
[1767156921924,0.11438,88399.0,88389.0,0.0001125]
[1767156922212,0.11438,88399.0,88379.0,0.1504949]
[1767156922213,0.01132,88398.0,88379.0,0.13918]
[1767156922369,0.4151664,88393.0,88379.0,0.13918]
[1767156922779,0.01131285,88395.0,88379.0,0.13918]
[1767156923191,0.01131298,88394.0,88383.0,0.00018875]
[1767156923385,0.01131311,88393.0,88383.0,0.00018875]
[1767156923592,0.01131324,88392.0,88383.0,0.00018875]
[1767156923794,0.01132,88391.0,88383.0,0.00018875]
[1767156923994,0.01131362,88389.0,88383.0,0.00018875]
[1767156924194,0.01132,88391.0,88383.0,0.00018875]
[1767156924394,0.02263336,88391.0,88383.0,0.00018875]
[1767156924624,0.01132,88391.0,88383.0,0.00018875]
[1767156925591,0.11438,88405.0,88383.0,0.15068314]
[1767156925774,0.01132,88404.0,88391.0,0.13918]
[1767156929062,0.01136,88405.0,88391.0,0.13918]
[1767156929744,0.48303259,88410.0,88391.0,0.13918]
[1767156929745,0.01131017,88416.0,88396.0,0.13918]
[1767156929951,0.01136,88409.0,88399.0,0.13918]
[1767156930513,0.11438,88419.0,88400.0,0.13918]
[1767156930713,0.11438,88419.0,88397.0,0.01136]
[1767156930714,0.000549,88400.0,88397.0,0.01136]
[1767156930956,0.000549,88400.0,88397.0,0.01081]
[1767156931161,0.01131234,88399.0,88396.0,0.0001125]
[1767156931361,0.01131234,88399.0,88396.0,2.5e-06]
[1767156931362,0.170833,88397.0,88396.0,2.5e-06]
[1767156931513,0.11427,88397.0,88396.0,2.5e-06]
[1767156931921,0.11427,88397.0,88383.0,0.00018875]
[1767156931922,0.11416,88390.0,88389.0,2.5e-06]
[1767156935265,0.01136,88394.0,88390.0,0.00055]
[1767156935665,0.01136,88394.0,88389.0,2.5e-06]
[1767156935666,0.12552,88394.0,88389.0,2.5e-06]
[1767156936708,0.11416,88394.0,88389.0,2.5e-06]
[1767156939193,0.11361,88392.0,88389.0,2.5e-06]
[1767156951380,0.02438453,88391.0,88389.0,2.5e-06]
[1767156952153,0.12492285,88395.0,88389.0,2.5e-06]
[1767156952286,0.11361,88393.0,88389.0,2.5e-06]
[1767156952620,0.02438455,88392.0,88389.0,2.5e-06]
[1767156953625,0.02438455,88391.0,88389.0,2.5e-06]
[1767156953826,0.01131285,88395.0,88389.0,2.5e-06]
[1767156954232,0.03569847,88396.0,88389.0,2.5e-06]
[1767156955376,0.01131285,88395.0,88389.0,2.5e-06]
[1767156956339,0.01131298,88394.0,88389.0,2.5e-06]
[1767156956506,0.0356986,88395.0,88389.0,2.5e-06]
[1767156956707,0.02438575,88394.0,88389.0,2.5e-06]
[1767156956907,0.02438575,88393.0,88389.0,2.5e-06]
[1767156957155,0.02438575,88392.0,88389.0,2.5e-06]
[1767156957305,0.02438575,88391.0,88389.0,2.5e-06]
[1767156957523,0.01131272,88396.0,88389.0,2.5e-06]
[1767156957752,0.01131285,88395.0,88389.0,2.5e-06]
[1767156958337,0.01131298,88394.0,88389.0,2.5e-06]
[1767156959285,0.02438832,88395.0,88389.0,2.5e-06]
[1767156959483,0.02438832,88394.0,88389.0,2.5e-06]
[1767156959686,0.02438832,88393.0,88389.0,2.5e-06]
[1767156959890,0.02438832,88392.0,88389.0,2.5e-06]
[1767156960067,0.02438832,88391.0,88389.0,2.5e-06]
[1767156960270,0.02438832,88390.0,88389.0,2.5e-06]
[1767156960664,0.02438832,88394.0,88389.0,2.5e-06]
[1767156960872,0.02438832,88393.0,88389.0,2.5e-06]
[1767156961199,0.02438832,88392.0,88389.0,2.5e-06]
[1767156961413,0.02438832,88391.0,88389.0,2.5e-06]
[1767156961566,0.02438832,88390.0,88389.0,2.5e-06]
[1767156961915,0.01131298,88394.0,88389.0,2.5e-06]
[1767156961916,0.02438832,88393.0,88389.0,2.5e-06]
[1767156962087,0.02438832,88392.0,88389.0,2.5e-06]
[1767156962289,0.02438832,88391.0,88389.0,2.5e-06]
[1767156962488,0.02438832,88390.0,88389.0,2.5e-06]
[1767156962869,0.02438832,88393.0,88389.0,2.5e-06]
[1767156963210,0.02438832,88392.0,88389.0,2.5e-06]
[1767156963357,0.02438832,88391.0,88389.0,2.5e-06]
[1767156963561,0.02438832,88390.0,88389.0,2.5e-06]
[1767156963876,0.02438832,88393.0,88389.0,2.5e-06]
[1767156964071,0.02438832,88392.0,88389.0,2.5e-06]
[1767156964277,0.02438832,88391.0,88389.0,2.5e-06]
[1767156964487,0.01131298,88394.0,88389.0,2.5e-06]
[1767156964488,0.02438832,88390.0,88389.0,2.5e-06]
[1767156964879,0.02438832,88393.0,88389.0,2.5e-06]
[1767156965112,0.02438832,88392.0,88389.0,2.5e-06]
[1767156965314,0.02438832,88391.0,88389.0,2.5e-06]
[1767156965568,0.02438832,88390.0,88389.0,2.5e-06]
[1767156965781,0.02438832,88393.0,88389.0,2.5e-06]
[1767156966594,0.02438832,88392.0,88389.0,2.5e-06]
[1767156966794,0.02438832,88391.0,88389.0,2.5e-06]
[1767156967032,0.02438832,88390.0,88389.0,2.5e-06]
[1767156967225,0.0357013,88394.0,88389.0,2.5e-06]
[1767156968316,0.02438832,88393.0,88389.0,2.5e-06]
[1767156968522,0.02438832,88392.0,88389.0,2.5e-06]
[1767156968760,0.02438832,88391.0,88389.0,2.5e-06]
[1767156968933,0.02438832,88390.0,88389.0,2.5e-06]
[1767156969344,0.01131298,88394.0,88389.0,2.5e-06]
[1767156969545,0.01131324,88392.0,88389.0,2.5e-06]
[1767156969725,0.09226811,88392.0,88389.0,2.5e-06]
[1767156969927,0.09226811,88392.0,88383.0,0.00018875]
[1767156969928,0.09226895,88391.0,88383.0,0.00018875]
[1767156970151,0.08095617,88390.0,88383.0,7.5e-07]
[1767156970365,0.01131375,88388.0,88383.0,7.5e-07]
[1767156970553,0.01131388,88387.0,88383.0,7.5e-07]
[1767156970730,0.01131375,88388.0,88383.0,7.5e-07]
[1767156970936,0.02442121,88389.0,88383.0,7.5e-07]
[1767156971113,0.01131336,88391.0,88383.0,7.5e-07]
[1767156971315,0.03573318,88391.0,88383.0,7.5e-07]
[1767156972670,0.01131349,88390.0,88383.0,7.5e-07]
[1767156972881,0.03573318,88391.0,88383.0,7.5e-07]
[1767156975928,0.01131349,88390.0,88383.0,7.5e-07]
[1767156976115,0.01131375,88388.0,88383.0,7.5e-07]
[1767156976369,0.01131349,88390.0,88383.0,7.5e-07]
[1767156976563,0.03572763,88390.0,88383.0,7.5e-07]
[1767156977907,0.09229551,88390.0,88383.0,7.5e-07]
[1767156978136,0.03572776,88389.0,88383.0,7.5e-07]
[1767156978265,0.01131362,88389.0,88383.0,7.5e-07]
[1767156978471,0.03572654,88390.0,88383.0,7.5e-07]
[1767156979735,0.01131362,88389.0,88383.0,7.5e-07]
[1767156980063,0.03572654,88390.0,88383.0,7.5e-07]
[1767156981257,0.011314,88386.0,88376.0,0.0001125]
[1767156981463,0.01131426,88384.0,88376.0,6.024e-05]
[1767156981895,0.01131452,88382.0,88376.0,6.024e-05]
[1767156982125,0.0113149,88379.0,88376.0,2.4e-07]
[1767156982331,0.01131477,88380.0,88376.0,2.4e-07]
[1767156982538,0.03572769,88381.0,88376.0,0.14402024]
[1767156983162,0.01131464,88381.0,88376.0,0.14402024]
[1767156983377,0.01131426,88384.0,88376.0,0.14402024]
[1767156983785,0.03570302,88385.0,88376.0,0.14402024]
[1767156983989,0.01131439,88383.0,88376.0,0.14402024]
[1767156985695,0.01131426,88384.0,88376.0,0.14402024]
[1767156986075,0.01131439,88383.0,88376.0,0.14402024]
[1767156986312,0.01131413,88385.0,88376.0,0.11430458]
[1767156986514,0.03569626,88385.0,88376.0,0.11430458]
[1767156986690,0.02438213,88385.0,88376.0,0.11430458]
[1767156987132,0.42690282,88386.0,88376.0,0.11430458]
[1767156989745,0.01131413,88385.0,88376.0,0.11430458]
[1767156989950,0.42690282,88386.0,88376.0,0.11430458]
[1767156990293,0.01131413,88385.0,88376.0,0.11430458]
[1767156991509,0.01131426,88384.0,88376.0,0.11430458]
[1767156991925,0.01131413,88385.0,88376.0,0.11430458]
[1767156992109,0.01131426,88384.0,88376.0,0.11430458]
[1767156993495,0.01131439,88383.0,88376.0,0.11430458]
[1767156993686,0.01131452,88382.0,88376.0,0.11430458]
[1767156993886,0.01131439,88383.0,88376.0,0.11430458]
[1767156994497,0.01131426,88384.0,88376.0,0.11430458]
[1767156994913,0.01131439,88383.0,88376.0,0.11430458]
[1767156995210,0.01131452,88382.0,88376.0,0.11430458]
[1767156995616,0.01131439,88383.0,88376.0,0.11430458]
[1767156996207,0.41558882,88390.0,88375.0,0.01136]
[1767156996414,0.41558882,88385.0,88375.0,0.01136]
[1767156996807,0.01131362,88389.0,88375.0,0.01136]
[1767156997018,0.01131362,88389.0,88375.0,0.07759]
[1767156997790,0.0001125,88393.0,88380.0,0.06623]
[1767156997986,0.0001125,88393.0,88383.0,0.06623]
[1767156998159,0.0001125,88393.0,88383.0,0.07759]
[1767157000672,0.0001125,88393.0,88383.0,0.08890439]
[1767157002423,0.0001125,88393.0,88384.0,0.06623]
[1767157002650,0.0001125,88393.0,88384.0,0.07754426]
[1767157005194,0.0001125,88393.0,88387.0,0.01131388]
[1767157005326,0.0001125,88393.0,88386.0,0.06623]
[1767157015606,0.0001125,88393.0,88383.0,0.01136]
[1767157019380,0.0001125,88393.0,88384.0,0.06623]
[1767157021736,0.0001125,88393.0,88384.0,0.07754426]
[1767157022365,0.0001125,88393.0,88384.0,0.06623]
[1767157022835,0.0001125,88393.0,88384.0,0.07754426]
[1767157023229,0.0001125,88393.0,88384.0,0.06623]
[1767157025799,0.14378,88392.0,88383.0,0.01136]
[1767157026031,0.0001125,88393.0,88383.0,0.01136]
[1767157027048,0.0001125,88393.0,88383.0,0.07759]
[1767157028210,0.0001125,88393.0,88383.0,0.01136]
[1767157029181,0.0001125,88393.0,88383.0,0.07759]
[1767157029560,0.0001125,88393.0,88383.0,0.08890439]
[1767157029763,0.0001125,88393.0,88383.0,0.07759]
[1767157036868,0.0001125,88393.0,88383.0,0.01136]
[1767157037894,0.1428425,88393.0,88383.0,0.01136]
[1767157039023,0.02441557,88392.0,88383.0,0.01136]
[1767157039580,0.0001125,88393.0,88383.0,0.01136]
[1767157041644,0.01142561,88393.0,88383.0,0.010811]
[1767157041908,0.03583798,88393.0,88383.0,0.010811]
[1767157042100,0.02452487,88393.0,88383.0,0.010811]
[1767157042385,0.0001125,88393.0,88383.0,0.010811]
[1767157045540,0.02452165,88393.0,88383.0,0.010811]
[1767157049865,0.0001125,88393.0,88383.0,0.010811]
[1767157060161,0.02451448,88393.0,88383.0,0.010811]
[1767157060418,0.0001125,88393.0,88383.0,0.010811]
[1767157061173,0.02451487,88393.0,88383.0,0.010811]
[1767157061578,0.0001125,88393.0,88383.0,0.010811]
[1767157065149,0.1428425,88393.0,88383.0,0.010811]
[1767157073718,0.15415561,88393.0,88383.0,0.010811]
[1767157073878,0.1428425,88393.0,88383.0,0.010811]
[1767157077910,0.1432,88391.0,88383.0,0.010811]
[1767157082099,0.145,88385.0,88380.0,0.0001064]
[1767157082298,0.145,88379.0,88377.0,0.01136]
[1767157082498,0.1451065,88379.0,88369.0,0.0001125]
[1767157082827,0.1451065,88379.0,88370.0,0.01136]
[1767157083811,0.145,88386.0,88379.0,0.0004425]
[1767157084411,0.145,88386.0,88372.0,0.0113158]
[1767157084618,0.145,88386.0,88371.0,0.01131592]
[1767157085300,0.145,88386.0,88370.0,0.16320605]
[1767157085651,0.145,88386.0,88370.0,0.15189]
[1767157085851,0.145,88386.0,88370.0,0.16320605]
[1767157086214,0.145,88386.0,88370.0,0.15189]
[1767157086382,0.145,88386.0,88370.0,0.16320605]
[1767157089398,0.145,88386.0,88370.0,0.15189]
[1767157089609,0.145,88386.0,88370.0,0.02267605]
[1767157089753,0.145,88386.0,88370.0,0.01136]
[1767157089964,0.145,88386.0,88370.0,0.02267605]
[1767157091453,0.156314,88386.0,88370.0,0.01136]
[1767157091610,0.145,88386.0,88370.0,0.01136]
[1767157091814,0.145,88386.0,88370.0,0.02267605]
[1767157094371,0.145,88386.0,88370.0,0.01136]
[1767157095178,0.145,88386.0,88370.0,0.02267605]
[1767157096701,0.145,88386.0,88371.0,0.01131592]
[1767157097587,0.145,88386.0,88370.0,0.02267605]
[1767157098615,0.145,88386.0,88371.0,0.01131592]
[1767157099717,0.145,88386.0,88371.0,0.06789517]
[1767157099878,0.145,88386.0,88371.0,0.01131592]
[1767157100076,0.145,88386.0,88372.0,0.0113158]
[1767157100475,0.145,88386.0,88373.0,0.01131567]
[1767157101909,0.145,88386.0,88372.0,0.0113158]
[1767157102210,0.14484878,88386.0,88372.0,0.0113158]
[1767157104219,0.14484878,88386.0,88373.0,0.01131567]
[1767157105522,0.14484878,88386.0,88373.0,0.0001065]
[1767157106019,0.14484878,88386.0,88373.0,0.01142217]
[1767157106400,0.14484878,88386.0,88373.0,0.0001065]
[1767157118563,0.14484878,88386.0,88373.0,0.01142217]
[1767157119061,0.14484878,88386.0,88373.0,0.0001065]
[1767157124770,0.14484878,88386.0,88372.0,0.01030941]
[1767157125102,0.14491709,88386.0,88372.0,0.01030941]
[1767157125272,0.14491709,88386.0,88371.0,0.01131592]
[1767157125879,0.14491709,88386.0,88372.0,0.0113158]
[1767157126076,0.14491709,88386.0,88370.0,0.01136]
[1767157126251,0.14491709,88386.0,88370.0,0.02267605]
[1767157126782,0.14491709,88386.0,88371.0,0.01131592]
[1767157128618,0.14491709,88386.0,88370.0,0.02267605]
[1767157129188,0.15623109,88386.0,88370.0,0.01136]
[1767157129369,0.14491709,88386.0,88370.0,0.01136]
[1767157129564,0.41555262,88380.0,88370.0,0.011254]
[1767157129857,0.14466,88379.0,88370.0,0.011254]
[1767157130621,0.14466,88379.0,88368.0,2.5e-06]
[1767157130815,0.01131452,88382.0,88368.0,2.5e-06]
[1767157130816,0.14466,88377.0,88368.0,2.5e-06]
[1767157151030,0.14173,88385.0,88368.0,2.5e-06]
[1767157151442,0.14173,88385.0,88368.0,0.01131881]
[1767157151623,0.14173,88385.0,88369.0,0.01131618]
[1767157151823,0.41555262,88380.0,88369.0,0.01131618]
[1767157152025,0.14173,88385.0,88370.0,0.01131605]
[1767157152613,0.14173,88385.0,88369.0,0.01131618]
[1767157153047,0.14173,88385.0,88370.0,0.01131605]
[1767157153275,0.14173,88385.0,88369.0,0.01131618]
[1767157153694,0.14173,88385.0,88370.0,0.01131605]
[1767157153888,0.14173,88385.0,88369.0,0.01131618]
[1767157155287,0.14173,88385.0,88370.0,0.01131605]
[1767157155503,0.14173,88385.0,88370.0,0.42686867]
[1767157156825,0.14173,88385.0,88369.0,0.01131618]
[1767157157175,0.14173,88385.0,88370.0,0.01131605]
[1767157158310,0.14173,88385.0,88369.0,0.01131618]
[1767157158827,0.14173,88385.0,88370.0,0.41555262]
[1767157159203,0.14711,88383.0,88370.0,0.41555262]
[1767157159609,0.14711,88383.0,88370.0,0.42686867]
[1767157159909,0.14711,88383.0,88370.0,0.41555262]
[1767157160308,0.14711,88383.0,88369.0,0.01131618]
[1767157160510,0.14711,88383.0,88370.0,0.01131605]
[1767157160892,0.14711,88383.0,88369.0,0.01131618]
[1767157161369,0.14711,88383.0,88368.0,0.01131881]
[1767157161979,0.14711,88383.0,88369.0,0.01131618]
[1767157162545,0.14711,88383.0,88368.0,0.01131881]
[1767157162734,0.14711,88383.0,88369.0,0.01131618]
[1767157162945,0.14711,88383.0,88368.0,0.01131881]
[1767157163905,0.14711,88383.0,88368.0,2.5e-06]
[1767157164287,0.14711,88383.0,88368.0,0.01131881]
[1767157165986,0.14711,88383.0,88368.0,2.5e-06]
[1767157166167,0.14711,88383.0,88368.0,0.01131881]
[1767157166740,0.14711,88383.0,88368.0,2.5e-06]
[1767157167239,0.14711,88383.0,88368.0,0.01131881]
[1767157167637,0.14711,88383.0,88368.0,2.5e-06]
[1767157168035,0.14711,88383.0,88369.0,0.01131618]
[1767157168697,0.14711,88383.0,88370.0,0.01131605]
[1767157168990,0.14711,88383.0,88369.0,0.01131618]
[1767157169431,0.14711,88383.0,88370.0,0.01131605]